bitfinex/quotes_ETHUSD_20260305
["timestamp","ask_amount","ask_price","bid_price","bid_amount"]
[1772730735101,0.48082623,2077.7,2076.8,1.20373396]
[1772730735503,1.20331151,2077.6,2076.8,1.20373396]
[1772730735703,1.20331151,2077.6,2076.9,0.0011]
[1772730737006,1.68313774,2077.6,2076.9,0.0011]
[1772730737205,3.34902876,2077.5,2076.9,0.0011]
[1772730737404,2.86920253,2077.4,2076.9,0.0011]
[1772730737724,0.47982623,2077.2,2076.6,0.0011]
[1772730738636,1.84582623,2077.2,2076.6,0.0011]
[1772730740734,1.20360117,2077.1,2076.6,0.0011]
[1772730741217,0.47982623,2077.0,2076.6,0.0011]
[1772730741405,1.20360117,2077.1,2076.6,0.0011]
[1772730741406,0.47982623,2076.8,2076.6,0.0011]
[1772730741611,3.35021198,2076.7,2076.6,0.0011]
[1772730741940,3.35021198,2076.7,2076.4,0.0011]
[1772730742097,1.84582623,2076.7,2076.4,0.0011]
[1772730742694,1.20389097,2076.6,2076.4,0.0011]
[1772730742921,1.20389097,2076.6,2076.1,0.0011]
[1772730744209,1.6837172,2076.6,2076.1,0.0011]
[1772730744526,1.20389097,2076.6,2076.1,0.0011]
[1772730744724,6.18115382,2076.8,2076.1,0.0011]
[1772730744937,1.20365912,2077.0,2076.1,0.460329]
[1772730745098,2.74595665,2077.2,2076.1,0.460329]
[1772730745099,1.20361253,2077.1,2076.1,0.460329]
[1772730745298,1.20342736,2077.4,2076.2,0.459229]
[1772730745524,4.81333845,2077.6,2076.2,0.459229]
[1772730745694,4.81333845,2077.6,2076.4,0.459229]
[1772730745896,4.81333845,2077.6,2076.8,0.460329]
[1772730745897,1.20331151,2077.6,2076.8,0.460329]
[1772730746118,0.001,2077.0,2076.8,0.460329]
[1772730746729,0.001,2077.0,2076.9,1.20371707]
[1772730747829,4.81412151,2077.7,2076.9,1.20371707]
[1772730748721,0.001,2077.7,2076.9,0.49551588]
[1772730749813,0.001,2077.7,2076.8,0.0011]
[1772730750016,0.001,2077.7,2076.8,0.48074291]
[1772730751034,0.001,2077.7,2076.9,1.20371707]
[1772730751335,0.001,2077.7,2076.8,1.68451339]
[1772730751835,0.47921172,2077.7,2076.8,1.20487196]
[1772730753339,1.20331151,2077.6,2076.8,0.0011]
[1772730754034,1.68152323,2077.6,2076.8,0.0011]
[1772730754242,0.47821172,2077.5,2076.8,0.0011]
[1772730754540,3.34856816,2077.4,2076.8,0.0011]
[1772730754738,1.20331151,2077.6,2076.8,0.0011]
[1772730755127,1.20331151,2077.6,2076.9,1.20371707]
[1772730755339,1.20331151,2077.6,2076.8,5.29561122]
[1772730755340,0.47821172,2077.5,2076.8,0.0011]
[1772730756147,0.47821172,2077.5,2076.5,0.0011]
[1772730756148,0.47821172,2077.3,2076.5,0.0011]
[1772730756313,3.34856505,2077.2,2076.5,0.0011]
[1772730756513,0.47821172,2077.2,2076.5,0.0011]
[1772730757312,1.68181289,2077.1,2076.5,0.0011]
[1772730757840,0.47821172,2077.1,2076.5,0.0011]
[1772730758423,0.47821172,2077.1,2076.7,0.0011]
[1772730758740,0.47921172,2077.0,2076.7,0.0011]
[1772730759116,3.35047677,2076.9,2076.7,0.0011]
[1772730759322,1.20377503,2076.8,2076.7,0.0011]
[1772730759539,1.20374924,2076.9,2076.7,0.0011]
[1772730759917,1.20469075,2077.0,2076.7,0.0011]
[1772730760432,0.001,2077.0,2076.7,0.0011]
[1772730761944,1.20336943,2077.5,2076.7,0.48074291]
[1772730762115,0.001,2077.4,2076.7,0.48074291]
[1772730762635,1.2033185,2077.6,2076.7,0.48074291]
[1772730762946,1.2043185,2077.6,2076.7,0.48074291]
[1772730763310,0.001,2077.6,2076.8,1.20377503]
[1772730763666,0.001,2077.6,2076.9,0.47964291]
[1772730765623,0.47921172,2077.6,2076.7,0.0011]
[1772730765809,0.47921172,2077.6,2076.8,1.20374042]
[1772730766448,2.87147467,2077.5,2076.8,1.20374042]
[1772730766636,0.47821172,2077.5,2076.8,1.20374042]
[1772730767849,0.47821172,2077.3,2076.7,0.0011]
[1772730768223,0.001,2077.2,2076.7,0.0011]
[1772730768725,7.07983986,2077.6,2076.9,0.47964291]
[1772730768726,1.2033211,2077.6,2076.9,0.47964291]
[1772730768925,1.20332465,2077.6,2076.9,0.47964291]
[1772730769124,1.20332465,2077.6,2076.8,1.20377503]
[1772730769330,0.47821172,2077.5,2076.7,1.20489371]
[1772730769744,1.20342736,2077.4,2076.7,1.20489371]
[1772730770047,1.20342736,2077.4,2076.7,1.68453662]
[1772730770737,1.20342736,2077.4,2076.9,0.0011]
[1772730771524,0.001,2077.5,2076.9,0.0011]
[1772730771723,0.001,2077.5,2077.1,0.47964291]
[1772730772728,0.001,2077.5,2077.0,1.20365912]
[1772730773132,0.001,2077.5,2076.9,1.20477363]
[1772730774045,0.001,2077.5,2076.9,0.0011]
[1772730774826,2.87472788,2077.5,2076.9,0.0011]
[1772730776249,4.07813962,2077.5,2076.9,0.0011]
[1772730776442,1.20441174,2077.5,2076.9,0.0011]
[1772730780651,0.001,2077.5,2076.9,0.0011]
[1772730780957,2.8788065,2077.5,2076.9,0.0011]
[1772730782257,1.20342736,2077.4,2076.9,0.0011]
[1772730782461,0.48253,2077.3,2076.7,0.0011]
[1772730782663,1.20342736,2077.4,2076.7,1.20492977]
[1772730782829,2.87867771,2077.3,2076.8,0.46101419]
[1772730783152,2.87867771,2077.3,2076.7,1.20493092]
[1772730783359,2.87867771,2077.3,2076.7,0.0011]
[1772730783827,2.87867771,2077.3,2076.7,1.20492563]
[1772730784323,4.08220787,2077.3,2076.7,0.46211419]
[1772730784528,1.2044025,2077.5,2076.7,0.46211419]
[1772730784953,0.001,2077.5,2076.7,0.46211419]
[1772730785326,1.20439462,2077.5,2077.0,0.46101419]
[1772730785525,1.20439462,2077.5,2076.9,0.0011]
[1772730785752,0.001,2077.1,2076.9,0.0011]
[1772730786452,0.001,2077.5,2077.0,0.46101419]
[1772730788059,1.20441565,2077.5,2076.9,0.0011]
[1772730788359,0.001,2077.5,2076.9,1.6657982]
[1772730788527,0.001,2077.5,2077.0,0.46101419]
[1772730790058,0.48353,2077.5,2076.9,1.20478401]
[1772730791276,1.20342736,2077.4,2076.9,0.0011]
[1772730792144,0.001,2077.5,2076.9,0.46211419]
[1772730793272,0.001,2077.5,2077.1,0.46101419]
[1772730794355,0.001,2077.7,2077.2,0.46101419]
[1772730795262,0.001,2077.7,2077.3,1.66449948]
[1772730795565,0.48353,2077.7,2077.0,0.46101419]
[1772730796149,0.001,2077.7,2077.0,0.46101419]
[1772730797370,1.68678359,2077.7,2077.1,1.20360117]
[1772730798447,0.001,2077.3,2077.1,1.20360117]
[1772730799082,0.001,2077.3,2077.1,1.66461536]
[1772730799676,0.001,2077.7,2077.2,0.46101419]
[1772730800077,0.001,2077.9,2077.2,0.46101419]
[1772730800448,0.48253,2077.8,2077.1,1.20360117]
[1772730800649,0.48253,2077.8,2077.1,1.66461536]
[1772730800848,1.20415169,2077.9,2077.2,0.46101419]
[1772730801049,0.001,2077.9,2077.2,0.46101419]
[1772730801248,2.26613042,2078.6,2077.3,0.46101419]
[1772730801449,1.2027494,2078.6,2077.4,0.46101419]
[1772730801647,3.46880757,2078.7,2077.6,0.46101419]
[1772730801892,2.26613042,2078.7,2077.6,0.46101419]
[1772730802099,3.46878996,2078.8,2077.6,0.46101419]
[1772730802251,1.20265954,2078.8,2077.6,0.46101419]
[1772730802868,1.68518954,2078.8,2077.6,0.46101419]
[1772730803583,1.2025799,2078.9,2077.6,0.46101419]
[1772730803751,0.48253,2078.8,2077.8,0.46101419]
[1772730805159,1.84653,2078.8,2077.8,0.46101419]
[1772730805467,0.48253,2078.8,2077.8,0.46101419]
[1772730805674,1.20267474,2078.7,2077.9,1.20313778]
[1772730805863,1.20267474,2078.7,2078.0,0.46101419]
[1772730806068,1.20255904,2078.9,2078.0,0.46101419]
[1772730806287,1.68508904,2078.9,2078.0,0.46101419]
[1772730807978,1.68508904,2078.9,2078.1,1.66874457]
[1772730809682,1.20255904,2078.9,2078.1,1.66874457]
[1772730809878,0.47355533,2078.8,2078.1,1.66874457]
[1772730810275,1.20267474,2078.7,2078.1,1.66874457]
[1772730810484,1.6762193,2078.8,2078.1,1.66874457]
[1772730811003,0.47152344,2079.4,2078.3,0.48190232]
[1772730811201,1.67384066,2079.4,2078.3,0.48190232]
[1772730811354,0.47152344,2079.3,2078.3,0.48190232]
[1772730812387,1.20238553,2079.2,2078.4,1.68475066]
[1772730812893,1.20238553,2079.2,2078.4,1.20284834]
[1772730813106,0.47152344,2079.1,2077.9,1.032]
[1772730813298,0.47152344,2079.1,2077.5,0.48190232]
[1772730813493,0.47152344,2078.9,2077.3,1.20456398]
[1772730813796,0.47152344,2078.7,2077.3,0.0011]
[1772730813974,0.47152344,2078.5,2077.3,0.0011]
[1772730814174,0.47152344,2078.3,2077.3,0.0011]
[1772730814373,0.47152344,2078.3,2077.3,1.20457643]
[1772730814603,1.67448754,2078.2,2077.3,1.20457643]
[1772730814986,0.47152344,2078.1,2077.3,1.20457643]
[1772730815506,0.47152344,2078.1,2077.3,0.0011]
[1772730816100,1.67439836,2078.4,2077.3,0.48300232]
[1772730816507,0.47152344,2078.3,2077.3,0.48300232]
[1772730816680,1.2029641,2078.2,2077.4,1.20342736]
[1772730816884,1.2029641,2078.2,2077.4,1.68532968]
[1772730817204,1.20279047,2078.5,2077.5,0.48190232]
[1772730818288,5.28268533,2078.6,2077.5,0.48190232]
[1772730818289,1.20274563,2078.6,2077.5,0.48190232]
[1772730818799,5.28233526,2078.7,2077.6,1.68521383]
[1772730819180,5.28233526,2078.7,2077.7,0.48190232]
[1772730820500,0.47152344,2078.6,2077.7,0.48190232]
[1772730820808,1.20279047,2078.5,2077.8,1.20319568]
[1772730822184,4.81045107,2078.9,2077.9,0.48190232]
[1772730822185,1.67408248,2078.9,2077.9,0.48190232]
[1772730822394,4.22925907,2078.8,2077.9,0.48190232]
[1772730822589,1.83252344,2078.8,2077.9,0.48300232]
[1772730822989,1.20267474,2078.7,2078.0,1.20307988]
[1772730823706,1.67419818,2078.7,2078.0,1.20307988]
[1772730824030,1.20267474,2078.7,2078.0,1.20307988]
[1772730824237,1.361,2078.9,2078.1,0.48190232]
[1772730824509,1.2026031,2078.9,2078.1,0.48190232]
[1772730824894,1.2026031,2078.9,2078.2,1.2029641]
[1772730825225,1.67505458,2079.0,2078.2,1.68486642]
[1772730825521,1.67503908,2079.0,2078.2,1.68486642]
[1772730825982,1.67503908,2079.0,2078.3,0.48190232]
[1772730826321,1.67503908,2079.0,2078.1,4.81185641]
[1772730826322,0.47152344,2078.9,2078.1,1.20298896]
[1772730826719,1.20351564,2079.0,2078.2,0.48190232]
[1772730826927,0.001,2079.0,2078.3,1.20290622]
[1772730827621,0.001,2079.0,2078.3,1.68480854]
[1772730827910,0.001,2079.0,2078.4,0.48190232]
[1772730828124,5.28054735,2079.5,2078.5,0.48190232]
[1772730828338,1.20232253,2079.4,2078.5,0.48190232]
[1772730828920,4.80861718,2079.6,2078.5,0.48190232]
[1772730828921,2.56315426,2079.6,2078.7,0.48190232]
[1772730829246,1.20215426,2079.6,2078.7,0.48190232]
[1772730830404,2.56079838,2079.7,2078.7,0.48190232]
[1772730830608,3.76292439,2079.7,2078.7,0.48190232]
[1772730830921,3.76292439,2079.7,2078.8,1.68451921]
[1772730831114,0.47152344,2079.6,2078.8,0.48190232]
[1772730831706,0.47152344,2079.6,2078.4,0.48190232]
[1772730831906,0.47152344,2079.6,2077.9,1.20421277]
[1772730831907,0.47152344,2079.3,2077.9,1.20421277]
[1772730832105,0.47152344,2079.1,2077.9,1.20421277]
[1772730832331,0.47152344,2078.9,2077.9,1.20421277]
[1772730832711,1.83152344,2078.9,2077.9,1.20421277]
[1772730833234,1.20261689,2078.8,2077.9,1.20421277]
[1772730834098,1.20261689,2078.8,2078.0,0.48190232]
[1772730835122,4.80978727,2079.1,2078.1,1.20302199]
[1772730835307,2.87003365,2079.0,2078.1,0.48190232]
[1772730835529,4.80978727,2079.1,2076.5,0.0011]
[1772730835530,0.47152344,2077.4,2076.5,0.0011]
[1772730835743,0.47152344,2077.4,2075.7,0.24397813]
[1772730835744,2.54529503,2076.8,2075.6,0.003]
[1772730835919,0.47152344,2076.3,2075.6,0.003]
[1772730836119,0.00299999,2075.3,2075.2,0.003]
[1772730836319,2.29856435,2076.3,2075.2,0.003]
[1772730836320,2.29856435,2076.8,2075.3,0.48190232]
[1772730836539,0.62100843,2076.9,2075.3,0.48190232]
[1772730836540,1.361,2076.7,2075.3,0.48190232]
[1772730836740,0.47152344,2076.9,2075.3,0.48190232]
[1772730836909,4.22340552,2076.8,2075.4,0.48190232]
[1772730837112,0.47152344,2076.9,2075.7,0.48190232]
[1772730837312,1.67506667,2077.2,2075.7,0.48190232]
[1772730837619,1.83352344,2077.1,2075.7,0.48190232]
[1772730838140,0.47152344,2077.0,2075.7,0.48190232]
[1772730838738,1.83452344,2077.0,2075.7,0.48190232]
[1772730839728,1.20371707,2076.9,2075.8,1.20435494]
[1772730840132,1.65821349,2076.9,2075.8,1.20435494]
[1772730840314,4.81486831,2077.1,2075.9,0.48502806]
[1772730840315,1.20362318,2077.1,2075.9,0.48502806]
[1772730840715,1.65808634,2077.2,2075.9,0.48502806]
[1772730841226,0.45449642,2077.1,2075.9,0.48502806]
[1772730841833,1.65814509,2077.1,2076.0,1.20423892]
[1772730842838,1.65814509,2077.1,2075.9,1.68928983]
[1772730843138,3.02314509,2077.1,2075.9,1.68928983]
[1772730843340,0.45449642,2077.0,2075.9,1.68928983]
[1772730843914,1.20371707,2076.9,2075.9,1.68928983]
[1772730845022,7.30849957,2077.5,2075.9,1.68928983]
[1772730845023,1.65792378,2077.4,2076.0,0.48502806]
[1772730845235,0.45449642,2077.4,2076.2,0.48502806]
[1772730845549,0.45449642,2077.8,2076.4,0.48502806]
[1772730845716,0.45449642,2078.2,2076.8,0.48502806]
[1772730845913,0.45449642,2078.2,2077.0,0.48502806]
[1772730846136,1.65746158,2078.2,2077.0,0.48502806]
[1772730846730,0.45449642,2078.2,2077.0,0.48502806]
[1772730846930,1.65748098,2078.2,2077.0,0.48502806]
[1772730848050,1.20307988,2078.0,2077.0,1.68865479]
[1772730848422,3.01855963,2078.1,2077.0,1.68865479]
[1772730848748,0.001,2078.0,2077.0,1.68865479]
[1772730849540,0.001,2078.0,2077.1,0.48502806]
[1772730849916,0.001,2078.0,2077.2,1.68857129]
[1772730851659,0.001,2078.0,2076.8,1.096536]
[1772730851660,0.45549642,2078.0,2076.8,1.51602806]
[1772730851834,0.45549642,2078.0,2076.9,1.20371707]
[1772730852037,1.20313778,2077.9,2076.9,1.20371707]
[1772730853867,4.8106804,2078.8,2076.9,1.20371707]
[1772730853868,1.20344313,2079.2,2078.1,0.48502806]
[1772730854067,1.20344313,2079.2,2078.1,1.68801016]
[1772730854241,1.65793955,2079.2,2078.1,1.68801016]
[1772730854759,0.45449642,2079.1,2077.9,1.20311724]
[1772730855273,0.45449642,2079.1,2077.8,0.35364346]
[1772730855930,1.20261689,2078.8,2077.8,0.35364346]
[1772730856136,0.45449642,2078.6,2077.8,0.35364346]
[1772730856961,0.45449642,2078.4,2077.8,0.35364346]
[1772730857164,0.45449642,2078.4,2077.8,1e-08]
[1772730857367,0.45449642,2078.4,2076.8,0.35413121]
[1772730857567,0.45449642,2078.4,2076.8,1.55789779]
[1772730857861,3.0,2078.0,2076.8,1.55789779]
[1772730858170,1.20313778,2077.9,2077.0,1.68868718]
[1772730858467,4.20312526,2078.0,2077.0,1.68868718]
[1772730860238,0.001,2077.7,2077.0,1.68868718]
[1772730862849,0.001,2077.7,2077.0,1.20365912]
[1772730863849,0.001,2077.7,2076.8,1.55788961]
[1772730866940,1.81249642,2077.6,2076.8,1.55790125]
[1772730867843,0.45449642,2077.6,2076.8,0.35413121]
[1772730868046,1.358,2077.5,2076.8,0.35413121]
[1772730868445,1.20342736,2077.4,2076.8,0.35413121]
[1772730869991,1.20342736,2077.4,2076.8,1.55789896]
[1772730870143,0.001,2077.7,2076.9,0.46990173]
[1772730870338,1.2042717,2077.7,2076.9,0.46990173]
[1772730870570,3.0,2078.0,2077.1,0.46990173]
[1772730871542,1.66309747,2078.8,2077.2,0.46990173]
[1772730871770,0.46048058,2078.6,2077.2,0.46990173]
[1772730871941,0.001,2077.7,2077.2,0.46990173]
[1772730872481,0.001,2077.7,2077.3,1.20348529]
[1772730873054,0.001,2077.7,2077.3,1.67338702]
[1772730874147,0.001,2077.7,2077.0,1.67464886]
[1772730874777,0.001,2077.7,2077.0,1.20474713]
[1772730874979,0.001,2077.7,2077.0,1.20474481]
[1772730876571,0.001,2077.7,2077.0,0.0011]
[1772730876951,0.001,2077.7,2077.0,0.47100173]
[1772730879079,0.001,2077.7,2077.1,1.20360117]
[1772730879382,0.001,2077.7,2077.2,0.46990173]
[1772730880467,0.001,2077.7,2077.1,1.20360117]
[1772730881059,0.001,2077.7,2077.0,4.81550469]
[1772730881563,0.46148058,2077.7,2077.0,0.0011]
[1772730881771,2.8724787,2077.6,2077.0,0.0011]
[1772730881972,0.46148058,2077.7,2077.0,0.0011]
[1772730882155,2.87330824,2077.6,2077.0,0.0011]
[1772730882356,0.46148058,2077.7,2077.0,0.0011]
[1772730882357,2.87330824,2077.5,2077.0,0.0011]
[1772730882558,0.46148058,2077.7,2077.0,0.0011]
[1772730882777,2.87306189,2077.6,2077.0,0.0011]
[1772730882987,2.87306189,2077.5,2077.0,0.0011]
[1772730883188,1.20336943,2077.5,2077.0,0.0011]
[1772730883388,1.20336943,2077.5,2076.8,0.35523121]
[1772730883577,3.33347128,2077.4,2076.8,0.35523121]
[1772730883893,2.8729907,2077.3,2076.8,0.35523121]
[1772730884056,2.8729907,2077.2,2076.8,0.35523121]
[1772730884259,1.81148058,2077.4,2076.8,0.35523121]
[1772730884459,2.87519409,2077.3,2076.8,0.35523121]
[1772730884685,2.87519409,2077.2,2077.0,0.0011]
[1772730884898,2.87519409,2077.1,2077.0,0.0011]
[1772730885464,1.20336943,2077.5,2077.0,0.0011]
[1772730887170,2.55436943,2077.5,2077.0,0.0011]
[1772730887491,2.55436943,2077.5,2076.8,1.55900279]
[1772730887492,1.66396587,2077.3,2076.8,0.35523121]
[1772730887664,0.46048058,2077.2,2076.8,0.35523121]
[1772730888581,0.46048058,2077.2,2076.8,0.24505089]
[1772730889109,1.351,2077.1,2076.8,0.0011]
[1772730889417,2.55466808,2077.0,2076.8,0.0011]
[1772730890815,3.44843602,2077.5,2076.8,0.0011]
[1772730890816,1.20342736,2077.4,2076.8,0.0011]
[1772730892119,3.01489609,2077.5,2076.8,0.0011]
[1772730892684,1.352,2077.4,2076.8,0.0011]
[1772730894417,1.20348529,2077.3,2076.8,0.0011]
[1772730896107,1.20348529,2077.3,2077.0,0.0011]
[1772730896296,1.20360117,2077.1,2076.8,0.0011]
[1772730899018,1.353,2077.0,2076.8,0.0011]
[1772730899222,1.2045703,2077.2,2076.8,0.0011]
[1772730899519,1.353,2077.1,2076.8,0.0011]
[1772730900095,1.2045703,2077.2,2076.8,0.0011]
[1772730900401,10.15816295,2079.8,2076.8,0.49771012]
[1772730900402,1.67403277,2077.6,2076.8,0.49771012]
[1772730900599,1.20427093,2077.7,2076.8,0.49771012]
[1772730900804,1.354,2077.6,2076.8,0.49771012]
[1772730901123,1.355,2077.7,2076.8,0.49771012]
[1772730901322,0.47067105,2077.6,2076.8,0.0011]
[1772730901923,2.55826332,2077.7,2076.8,0.49771012]
[1772730902218,0.001,2077.7,2076.8,0.49771012]
[1772730902420,3.02163984,2078.2,2077.2,0.49661012]
[1772730903006,3.02163984,2078.2,2077.1,1.20360117]
[1772730903007,0.47067105,2078.0,2077.1,1.20360117]
[1772730903210,2.87262483,2077.9,2077.0,1.20361135]
[1772730903405,2.87262483,2077.9,2076.9,5.3113644]
[1772730903406,3.34329588,2077.9,2076.9,1.70028398]
[1772730903726,3.34329588,2077.8,2076.9,1.70028398]
[1772730903934,1.344,2077.7,2076.9,1.70028398]
[1772730904117,1.344,2077.7,2076.8,4.81610433]
[1772730904118,1.81467105,2077.7,2076.8,1.20484394]
[1772730904429,1.20336943,2077.5,2076.8,0.0011]
[1772730905714,0.47067105,2077.3,2076.5,0.0011]
[1772730905917,0.47067105,2077.0,2076.5,0.0011]
[1772730906098,2.87406786,2076.9,2076.5,0.0011]
[1772730906301,4.22106786,2076.8,2076.5,0.0011]
[1772730906495,1.20389097,2076.6,2076.5,0.0011]
[1772730906730,4.07833191,2076.6,2076.5,0.0011]
[1772730906905,0.47067105,2076.5,2075.5,1.20558561]
[1772730907232,2.87536719,2076.4,2075.5,1.20558561]
[1772730907410,0.47067105,2076.3,2075.6,0.0022]
[1772730907607,4.69403824,2076.2,2075.6,0.0022]
[1772730907800,2.87536719,2076.1,2075.6,0.0022]
[1772730908125,2.87327336,2076.0,2075.6,0.0022]
[1772730908328,0.47067105,2076.2,2075.5,0.0011]
[1772730908627,4.65232699,2076.6,2075.5,0.0011]
[1772730908628,1.349,2076.1,2075.6,0.0022]
[1772730911433,2.5532296,2076.1,2075.6,0.0022]
[1772730911804,0.47067105,2076.0,2075.5,0.0011]
[1772730912328,1.352,2075.9,2075.5,0.0011]
[1772730912536,0.47067105,2075.8,2075.5,0.0011]
[1772730913108,0.47067105,2075.8,2075.0,0.0011]
[1772730913303,1.67508401,2075.7,2075.0,0.0011]
[1772730913707,0.47067105,2075.6,2075.0,0.0011]
[1772730915138,1.20441296,2075.7,2075.0,0.0011]
[1772730915139,0.47067105,2075.4,2075.0,0.0011]
[1772730915335,0.47067105,2075.0,2074.8,0.0011]
[1772730915506,1.354,2074.9,2074.8,0.0011]
[1772730916030,0.47067105,2075.0,2074.8,0.0011]
[1772730916232,1.354,2074.9,2074.8,0.0011]
[1772730917026,1.354,2074.9,2073.6,4.82206577]
[1772730917027,0.47067105,2074.8,2073.4,0.49661012]
[1772730917352,1.67578071,2074.5,2073.5,1.20679086]
[1772730917640,0.47067105,2074.4,2073.5,1.20679086]
[1772730917944,0.47067105,2074.4,2073.5,0.0011]
[1772730918310,0.47067105,2075.0,2073.5,0.49661012]
[1772730918637,1.355,2074.9,2073.7,0.49661012]
[1772730918859,0.47067105,2075.0,2073.8,0.49771012]
[1772730919009,1.355,2074.9,2073.8,0.49661012]
[1772730919437,2.5599062,2074.9,2073.9,1.70206843]
[1772730920010,0.47067105,2074.8,2074.0,0.0011]
[1772730921442,1.356,2074.8,2074.0,0.49771012]
[1772730921615,1.356,2075.0,2074.2,0.49661012]
[1772730922121,1.356,2075.2,2074.3,0.49661012]
[1772730922321,1.356,2075.2,2074.4,0.0011]
[1772730922933,0.47067105,2075.4,2074.4,0.0011]
[1772730923245,1.357,2075.3,2074.4,0.49771012]
[1772730923433,1.357,2075.3,2074.4,0.0011]
[1772730923434,0.47067105,2075.2,2074.4,0.0011]
[1772730923611,1.357,2075.1,2074.4,0.0011]
[1772730923816,1.67521522,2075.5,2074.4,0.49771012]
[1772730924140,1.357,2075.4,2074.4,0.49771012]
[1772730924353,1.67520864,2075.5,2074.4,0.49771012]
[1772730924521,7.55187716,2075.9,2074.4,0.49771012]
[1772730924522,1.357,2075.4,2074.4,0.49771012]
[1772730925534,1.20470316,2075.2,2074.4,0.0011]
[1772730925746,1.357,2075.4,2074.5,0.49661012]
[1772730926170,1.357,2075.4,2074.6,0.0011]
[1772730926347,1.67508401,2075.7,2074.5,0.43364419]
[1772730926554,1.20440058,2075.8,2074.5,0.43364419]
[1772730926753,1.357,2075.9,2074.5,0.43364419]
[1772730926955,1.20412291,2076.2,2074.5,0.43364419]
[1772730927362,1.352,2076.1,2074.5,0.43364419]
[1772730927844,1.20423892,2076.0,2074.7,0.49771611]
[1772730928579,2.5562233,2076.1,2074.7,0.49771611]
[1772730929176,1.2042233,2076.1,2074.7,0.49771611]
[1772730929472,2.5572233,2076.1,2074.7,0.49771611]
[1772730929842,2.5572233,2076.1,2074.9,0.49771611]
[1772730930245,1.2042233,2076.1,2074.9,0.49771611]
[1772730930445,2.5582233,2076.1,2074.9,0.49771611]
[1772730931750,3.02489498,2076.1,2074.9,0.49771611]
[1772730932073,3.02489498,2076.1,2075.0,1.7042474]
[1772730932258,0.46667168,2076.0,2075.0,1.7042474]
[1772730932871,2.55912291,2076.2,2075.1,0.49942813]
[1772730933183,0.46767168,2075.9,2075.0,1.20481927]
[1772730933366,0.46767168,2075.9,2075.0,1.7042474]
[1772730933566,0.46767168,2075.9,2075.1,0.49942813]
[1772730933567,0.001,2075.9,2075.1,0.49942813]
[1772730934066,0.001,2075.9,2075.2,1.70413129]
[1772730934267,0.001,2075.9,2075.2,1.20470316]
[1772730936052,0.001,2075.9,2075.0,4.81881264]
[1772730936773,0.001,2075.9,2075.1,0.49942813]
[1772730937582,0.46767168,2075.9,2075.1,0.49942813]
[1772730937791,0.001,2075.9,2075.1,0.49942813]
[1772730937969,1.20435494,2075.8,2075.2,1.20470316]
[1772730938487,1.20435494,2075.8,2075.1,1.70414506]
[1772730938787,0.46667168,2075.7,2074.5,1.70453779]
[1772730938972,0.46667168,2075.7,2074.6,0.49942813]
[1772730939157,1.355,2075.7,2074.6,0.49942813]
[1772730939354,1.20435494,2075.8,2074.6,0.49942813]
[1772730939660,2.55935494,2075.8,2074.6,0.49942813]
[1772730940549,4.81820108,2075.9,2074.8,0.49942813]
[1772730940550,0.001,2075.9,2074.8,0.49942813]
[1772730940967,1.20530443,2075.9,2074.8,0.49942813]
[1772730941348,1.20530804,2075.9,2074.8,0.49942813]
[1772730942084,1.20530908,2075.9,2074.8,0.49942813]
[1772730942463,1.20530908,2075.9,2074.9,1.20487734]
[1772730942672,1.20530908,2075.9,2075.0,0.49942813]
[1772730943267,0.001,2075.9,2075.0,0.49942813]
[1772730943858,0.46667168,2075.8,2074.8,1.20489709]
[1772730944183,0.46667168,2075.8,2074.7,5.31916979]
[1772730944184,0.46667168,2075.8,2074.7,1.70437762]
[1772730944679,0.46667168,2075.6,2074.7,1.70547762]
[1772730944885,0.46667168,2075.4,2074.7,0.0011]
[1772730945098,2.86683645,2075.5,2074.5,0.0011]
[1772730945099,0.46667168,2075.2,2074.5,0.0011]
[1772730945275,0.46667168,2075.0,2074.5,0.0011]
[1772730945873,3.64619864,2075.3,2074.5,0.0011]
[1772730945874,0.46667168,2074.8,2074.5,0.0011]
[1772730946261,2.29119864,2075.1,2074.5,0.0011]
[1772730946262,1.355,2074.9,2074.5,0.0011]
[1772730946669,1.20493865,2074.8,2074.5,0.0011]
[1772730948459,2.55993865,2074.8,2074.5,0.0011]
[1772730948772,1.355,2074.8,2074.5,0.0011]
[1772730948972,1.20481927,2075.0,2074.5,0.0011]
[1772730949171,0.46667168,2075.1,2074.5,0.0011]
[1772730949401,1.355,2075.0,2074.5,0.0011]
[1772730949561,1.82167168,2075.0,2074.5,0.0011]
[1772730950376,0.46667168,2075.0,2074.5,0.0011]
[1772730950570,1.82167168,2075.0,2074.5,0.0011]
[1772730950987,1.20487734,2074.9,2074.5,0.0011]
[1772730951668,1.67153831,2075.0,2074.5,0.0011]
[1772730951980,1.355,2074.9,2074.5,0.0011]
[1772730953565,1.2048328,2075.0,2074.5,0.0011]
[1772730953884,2.5598328,2075.0,2074.5,0.0011]
[1772730955393,1.355,2075.0,2074.5,0.0011]
[1772730955778,2.55986616,2075.0,2074.5,0.0011]
[1772730956979,0.46667168,2074.9,2074.5,0.0011]
[1772730957182,2.55986616,2075.0,2074.5,0.0011]
[1772730957183,0.46667168,2074.7,2074.5,0.0011]
[1772730957698,0.46667168,2074.5,2074.2,0.0011]
[1772730957900,0.46667168,2074.3,2074.2,0.0011]
[1772730958105,0.46667168,2074.3,2073.7,0.0011]
[1772730958106,0.46667168,2074.2,2073.7,0.0011]
[1772730958274,1.82167168,2074.1,2073.7,0.0011]
[1772730958470,1.82167168,2074.1,2073.7,0.0022]
[1772730959597,1.82167168,2074.0,2073.7,0.0011]
[1772730959798,1.67212999,2073.9,2073.7,0.0011]
[1772730960297,1.355,2073.8,2073.7,0.0011]
[1772730960470,0.45890364,2074.2,2073.7,0.0033]
[1772730960671,1.355,2074.1,2073.7,0.0033]
[1772730961092,1.6642351,2074.2,2073.7,0.0033]
[1772730961295,4.82075463,2074.4,2073.7,0.0033]
[1772730961503,1.25388608,2074.1,2073.7,0.0033]
[1772730961706,1.20599349,2074.8,2073.7,0.45727989]
[1772730962000,1.20599349,2074.8,2073.9,0.45617989]
[1772730962001,0.001,2074.8,2073.9,0.45617989]
[1772730962211,2.75110228,2075.7,2073.9,0.45617989]
[1772730962372,2.75110228,2075.7,2073.8,1.20551644]
[1772730962373,5.42460025,2075.6,2074.3,0.45617989]
[1772730962578,5.41609378,2075.5,2074.0,0.40886713]
[1772730962774,0.45890364,2075.3,2074.2,0.45617989]
[1772730963003,3.32235514,2075.2,2073.9,0.45727989]
[1772730963230,0.45890364,2075.0,2073.9,0.45727989]